[Event "DVM U10 2024"]
[Site "Duesseldorf"]
[Date "2024.12.28"]
[Round "5"]
[White "Torgoev, Timur"]
[Black "Breaz, Arthur"]
[Result "0-1"]
[ECO "C50"]
[WhiteElo "1153"]
[BlackElo "1123"]
[Annotator "NA RC"]
[PlyCount "162"]
[EventDate "2024.12.23"]
[EventType "team-tourn"]
[EventRounds "7"]
[EventCountry "GER"]
[SourceTitle "playchess.com"]
[Source "ChessBase"]
[SourceQuality "1"]
[TimeControl "3300+5"]

1. e4 {[%emt 0:00:04]} e5 {[%emt 0:00:06]} 2. Nf3 {[%emt 0:00:07]} Nc6 {[%emt 0:00:04]} 3. Bc4 {[%emt 0:00:06]} Bc5 {[%emt 0:00:08]} 4. Nc3 {[%emt 0:00:11]} Nf6 {[%emt 0:00:10]} 5. d3 {[%emt 0:00:08]} O-O {[%emt 0:00:11]} 6. Bg5 {[%emt 0:00:25]} d6 {[%emt 0:00:50]} 7. h3 {[%emt 0:00:07]} Re8 {[%emt 0:00:27]} 8. O-O {[%emt 0:01:06]} Be6 {[%emt 0:00:17]} 9. Bb3 {[%emt 0:00:08]} h6 {[%emt 0:01:25]} 10. Bh4 {[%emt 0:00:20]} Nd4 {[%emt 0:02:16]} 11. Nxd4 {[%emt 0:00:19]} Bxd4 {[%emt 0:00:14]} 12. Qd2 {[%emt 0:00:45]} c6 {[%emt 0:00:46]} 13. Rab1 {[%emt 0:00:35]} d5 {[%emt 0:01:26]} 14. exd5 {[%emt 0:00:34]} cxd5 {[%emt 0:00:10]} 15. Nxd5 {[%emt 0:01:20]} Bxd5 {[%emt 0:00:15]} 16. Bxf6 {[%emt 0:00:11]} gxf6 {[%emt 0:00:33]} 17. Bxd5 {[%emt 0:00:12]} Qxd5 {[%emt 0:00:29]} 18. c3 {[%emt 0:00:21]} Bc5 {[%emt 0:00:19]} 19. Qxh6 {[%emt 0:00:11]} Re6 {[%emt 0:00:53]} 20. Rfe1 {[%emt 0:02:13]} Bf8 {[%emt 0:00:18]} 21. Qe3 {[%emt 0:00:32]} Bg7 {[%emt 0:02:59]} 22. Qg3 {[%emt 0:00:41]} f5 {[%emt 0:00:58]} 23. Qe3 {[%emt 0:01:33]} f4 {[%emt 0:00:21]} 24. Qe2 {[%emt 0:00:20]} Rh6 {[%emt 0:00:24]} 25. f3 {[%emt 0:01:05]} Rd8 {[%emt 0:00:44]} 26. Red1 {[%emt 0:00:13]} Rhd6 {[%emt 0:02:27]} 27. a3 {[%emt 0:00:35]} Qc5+ {[%emt 0:00:16]} 28. Kh1 {[%emt 0:00:26]} Qe3 {[%emt 0:00:35]} 29. Qf1 {[%emt 0:03:28]} Rxd3 {[%emt 0:01:41]} 30. Rxd3 {[%emt 0:00:12]} Rxd3 {[%emt 0:00:07]} 31. Re1 {[%emt 0:00:15]} Qd2 {[%emt 0:00:48]} 32. Re2 {[%emt 0:01:40]} Qd1 {[%emt 0:00:26]} 33. Re1 {[%emt 0:00:06]} Qc2 {[%emt 0:00:37]} 34. Re2 {[%emt 0:00:37]} Rd1 {[%emt 0:00:14]} 35. Rxc2 {[%emt 0:00:26]} Rxf1+ {[%emt 0:00:02]} 36. Kh2 {[%emt 0:00:00]} f5 {[%emt 0:00:35]} 37. g4 {[%emt 0:00:16]} fxg3+ {[%emt 0:00:24]} 38. Kxg3 {[%emt 0:00:21]} Rg1+ {[%emt 0:00:14]} 39. Kh2 {[%emt 0:00:30]} Rg6 {[%emt 0:00:20]} 40. Rd2 {[%emt 0:00:12]} f4 {[%emt 0:00:48]} 41. Rd7 {[%emt 0:00:19]} Rg3 {[%emt 0:01:05]} 42. Rd3 {[%emt 0:00:42]} e4 {[%emt 0:00:16]} 43. Rd8+ {[%emt 0:00:16]} Kh7 {[%emt 0:00:12]} 44. fxe4 {[%emt 0:00:02]} Re3 {[%emt 0:00:39]} 45. Re8 {[%emt 0:01:02]} Re2+ {[%emt 0:00:25]} 46. Kg1 {[%emt 0:00:15]} Rxb2 {[%emt 0:00:55]} 47. Re7 {[%emt 0:00:14]} Kg6 {[%emt 0:00:25]} 48. e5 {[%emt 0:00:18]} f3 {[%emt 0:02:00]} 49. Kf1 {[%emt 0:00:28]} Bf8 {[%emt 0:00:24]} 50. Re6+ {[%emt 0:00:28]} Kf7 {[%emt 0:00:12]} 51. Rf6+ {[%emt 0:00:08]} Ke7 {[%emt 0:00:15]} 52. Rxf3 {[%emt 0:00:03]} Rb3 {[%emt 0:01:40]} 53. a4 {[%emt 0:00:19]} Ra3 {[%emt 0:00:27]} 54. Rf4 {[%emt 0:00:47]} Rxc3 {[%emt 0:00:00]} 55. Rb4 {[%emt 0:00:11]} b6 {[%emt 0:00:27]} 56. a5 {[%emt 0:00:36]} Ke6 {[%emt 0:01:45]} 57. Ra4 {[%emt 0:00:40]} Kxe5 {[%emt 0:01:13]} 58. axb6 {[%emt 0:00:14]} axb6 {[%emt 0:00:09]} 59. Ra6 {[%emt 0:00:15]} Bc5 {[%emt 0:00:25]} 60. Ra1 {[%emt 0:00:25]} Rxh3 {[%emt 0:00:13]} 61. Ke2 {[%emt 0:00:15]} Re3+ {[%emt 0:00:13]} 62. Kd2 {[%emt 0:00:11]} Rf3 {[%emt 0:00:19]} 63. Re1+ {[%emt 0:00:08]} Kd6 {[%emt 0:00:55]} 64. Rd1 {[%emt 0:00:17]} Rf8 {[%emt 0:00:18]} 65. Kc3+ {[%emt 0:00:09]} Kc6 {[%emt 0:00:12]} 66. Rb1 {[%emt 0:00:07]} Rb8 {[%emt 0:00:32]} 67. Kc2 {[%emt 0:01:20]} b5 {[%emt 0:00:11]} 68. Kb2 {[%emt 0:00:09]} Kd5 {[%emt 0:00:36]} 69. Kc2 {[%emt 0:00:17]} Kc4 {[%emt 0:00:15]} 70. Kb2 {[%emt 0:00:19]} Bd4+ {[%emt 0:00:11]} 71. Kc2 {[%emt 0:00:09]} b4 {[%emt 0:00:07]} 72. Rb3 {[%emt 0:00:24]} Bc3 {[%emt 0:00:51]} 73. Rb1 {[%emt 0:00:22]} b3+ {[%emt 0:00:17]} 74. Kc1 {[%emt 0:00:23]} Rd8 {[%emt 0:00:31]} 75. Rb2 {[%emt 0:00:38]} Bxb2+ {[%emt 0:00:11]} 76. Kxb2 {[%emt 0:00:05]} Rd2+ {[%emt 0:00:14]} 77. Kb1 {[%emt 0:00:05]} Kc3 {[%emt 0:00:16]} 78. Kc1 {[%emt 0:00:07]} b2+ {[%emt 0:00:24]} 79. Kb1 {[%emt 0:00:06]} Rd1+ {[%emt 0:00:08]} 80. Ka2 {[%emt 0:00:01]} b1=Q+ {[%emt 0:00:15]} 81. Ka3 {[%emt 0:00:07]} Qb3# {[%emt 0:00:11]} 0-1

[Event "DVM U10 2024"]
[Site "Duesseldorf"]
[Date "2024.12.28"]
[Round "5"]
[White "Gerhardt, Noah"]
[Black "Saloum, Michael"]
[Result "1-0"]
[ECO "D02"]
[WhiteElo "1140"]
[BlackElo "1067"]
[Annotator "NA RC"]
[PlyCount "113"]
[EventDate "2024.12.23"]
[EventType "team-tourn"]
[EventRounds "7"]
[EventCountry "GER"]
[SourceTitle "playchess.com"]
[Source "ChessBase"]
[SourceQuality "1"]
[TimeControl "3300+5"]

1. d4 {[%emt 0:00:01]} d5 {[%emt 0:00:14]} 2. Nf3 {[%emt 0:00:14]} Nc6 {[%emt 0:00:46]} 3. Bf4 {[%emt 0:00:15]} Nf6 {[%emt 0:00:53]} 4. e3 {[%emt 0:00:18]} g6 {[%emt 0:06:28]} 5. Bb5 {[%emt 0:00:15]} Bg7 {[%emt 0:00:57]} 6. Nbd2 {[%emt 0:00:27]} O-O {[%emt 0:01:32]} 7. Bxc6 {[%emt 0:01:01]} bxc6 {[%emt 0:00:22]} 8. O-O {[%emt 0:00:15]} Re8 {[%emt 0:02:11]} 9. c4 {[%emt 0:00:28]} Ba6 {[%emt 0:02:25]} 10. b3 {[%emt 0:00:45]} h5 {[%emt 0:09:11]} 11. Re1 {[%emt 0:00:10]} dxc4 {[%emt 0:08:05]} 12. Nxc4 {[%emt 0:00:16]} Bxc4 {[%emt 0:00:18]} 13. bxc4 {[%emt 0:00:06]} Nh7 {[%emt 0:00:46]} 14. Qa4 {[%emt 0:00:40]} c5 {[%emt 0:00:47]} 15. dxc5 {[%emt 0:00:12]} Bxa1 {[%emt 0:00:14]} 16. Rxa1 {[%emt 0:00:09]} e6 {[%emt 0:01:41]} 17. Rd1 {[%emt 0:00:23]} Qe7 {[%emt 0:01:59]} 18. Qc6 {[%emt 0:00:44]} Rad8 {[%emt 0:01:10]} 19. Rxd8 {[%emt 0:01:06]} Rxd8 {[%emt 0:00:48]} 20. h3 {[%emt 0:00:55]} Rc8 {[%emt 0:03:08]} 21. Qb7 {[%emt 0:00:21]} Qd8 {[%emt 0:00:15]} 22. Qxa7 {[%emt 0:00:29]} Ra8 {[%emt 0:00:26]} 23. Qxc7 {[%emt 0:00:56]} Qxc7 {[%emt 0:00:28]} 24. Bxc7 {[%emt 0:00:02]} Rxa2 {[%emt 0:00:09]} 25. Bd6 {[%emt 0:01:16]} Nf6 {[%emt 0:00:34]} 26. Ne5 {[%emt 0:00:43]} Ne4 {[%emt 0:00:17]} 27. f3 {[%emt 0:01:23]} Nxd6 {[%emt 0:00:03]} 28. cxd6 {[%emt 0:00:10]} Ra8 {[%emt 0:00:07]} 29. d7 {[%emt 0:00:25]} Rd8 {[%emt 0:00:17]} 30. c5 {[%emt 0:00:08]} Kf8 {[%emt 0:01:28]} 31. c6 {[%emt 0:00:30]} Rxd7 {[%emt 0:06:15]} 32. cxd7 {[%emt 0:00:17]} Ke7 {[%emt 0:00:01]} 33. Nxf7 {[%emt 0:01:14]} Kxd7 {[%emt 0:00:03]} 34. Nh8 {[%emt 0:00:22]} g5 {[%emt 0:00:03]} 35. Nf7 {[%emt 0:00:12]} g4 {[%emt 0:00:10]} 36. hxg4 {[%emt 0:00:05]} hxg4 {[%emt 0:00:02]} 37. fxg4 {[%emt 0:00:15]} Ke7 {[%emt 0:00:01]} 38. Ne5 {[%emt 0:00:15]} Kf6 {[%emt 0:00:01]} 39. Nf3 {[%emt 0:00:21]} Kg6 {[%emt 0:00:02]} 40. Kh2 {[%emt 0:00:17]} Kf6 {[%emt 0:00:01]} 41. Kg3 {[%emt 0:00:15]} Kg6 {[%emt 0:00:02]} 42. Kf4 {[%emt 0:00:14]} Kf6 {[%emt 0:00:01]} 43. e4 {[%emt 0:00:23]} e5+ {[%emt 0:00:03]} 44. Nxe5 {[%emt 0:00:11]} Ke6 {[%emt 0:00:00]} 45. g5 {[%emt 0:00:20]} Ke7 {[%emt 0:00:01]} 46. g6 {[%emt 0:00:20]} Kf8 47. g4 {[%emt 0:00:25]} Kg7 48. g5 {[%emt 0:00:19]} Kg8 {[%emt 0:00:03]} 49. Nf7 {[%emt 0:00:22]} Kg7 {[%emt 0:00:07]} 50. Kf5 {[%emt 0:00:05]} Kg8 {[%emt 0:00:05]} 51. Nd6 {[%emt 0:00:05]} Kf8 {[%emt 0:00:05]} 52. e5 {[%emt 0:00:05]} Kg8 {[%emt 0:00:05]} 53. e6 {[%emt 0:00:05]} Kf8 {[%emt 0:00:05]} 54. e7+ {[%emt 0:00:05]} Kg8 {[%emt 0:00:05]} 55. e8=Q+ {[%emt 0:00:05]} Kg7 {[%emt 0:00:05]} 56. Qf7+ {[%emt 0:00:05]} Kh8 {[%emt 0:00:05]} 57. Qh7# {[%emt 0:33:50]} 1-0

[Event "DVM U10 2024"]
[Site "Duesseldorf"]
[Date "2024.12.28"]
[Round "5"]
[White "Kissel, Joshua"]
[Black "Lankenau, Matteo Joel"]
[Result "0-1"]
[ECO "B22"]
[WhiteElo "1140"]
[BlackElo "1011"]
[Annotator "NA RC"]
[PlyCount "100"]
[EventDate "2024.12.23"]
[EventType "team-tourn"]
[EventRounds "7"]
[EventCountry "GER"]
[SourceTitle "playchess.com"]
[Source "ChessBase"]
[SourceQuality "1"]
[TimeControl "3300+5"]

1. e4 {[%emt 0:00:05]} c5 {[%emt 0:00:06]} 2. c3 {[%emt 0:00:01]} a6 {[%emt 0:00:15]} 3. d4 {[%emt 0:00:06]} cxd4 {[%emt 0:00:19]} 4. cxd4 e6 {[%emt 0:00:05]} 5. Nc3 {[%emt 0:00:23]} d6 {[%emt 0:00:22]} 6. Nf3 {[%emt 0:00:09]} Be7 {[%emt 0:00:21]} 7. Bc4 {[%emt 0:00:15]} Bd7 {[%emt 0:00:26]} 8. O-O {[%emt 0:00:26]} Nf6 {[%emt 0:00:06]} 9. a3 {[%emt 0:01:54]} O-O {[%emt 0:00:11]} 10. b4 {[%emt 0:00:01]} b5 {[%emt 0:00:49]} 11. Bd3 {[%emt 0:00:13]} Re8 {[%emt 0:00:36]} 12. Be3 {[%emt 0:00:19]} d5 {[%emt 0:00:24]} 13. Re1 {[%emt 0:02:35]} Qc7 {[%emt 0:01:23]} 14. Rb1 {[%emt 0:00:18]} Qxc3 {[%emt 0:00:34]} 15. Rb3 {[%emt 0:00:42]} Qc7 {[%emt 0:00:39]} 16. Qd2 {[%emt 0:00:21]} Rc8 {[%emt 0:01:04]} 17. Rc1 {[%emt 0:01:53]} Qxc1+ {[%emt 0:01:11]} 18. Qxc1 {[%emt 0:00:37]} Rxc1+ {[%emt 0:00:09]} 19. Bxc1 {[%emt 0:00:16]} Bd6 {[%emt 0:00:54]} 20. g3 {[%emt 0:00:27]} Nc6 {[%emt 0:00:29]} 21. Be3 {[%emt 0:02:03]} dxe4 {[%emt 0:00:17]} 22. Bxe4 {[%emt 0:00:28]} Nxe4 {[%emt 0:00:23]} 23. Kf1 {[%emt 0:05:39]} Rc8 {[%emt 0:00:36]} 24. Rb1 {[%emt 0:05:53]} e5 {[%emt 0:00:33]} 25. dxe5 {[%emt 0:00:23]} Nxe5 {[%emt 0:00:17]} 26. Nxe5 {[%emt 0:00:09]} Bxe5 {[%emt 0:00:09]} 27. f4 {[%emt 0:09:16]} Bd4 {[%emt 0:02:04]} 28. Bc1 {[%emt 0:01:32]} Bh3+ {[%emt 0:00:42]} 29. Ke1 {[%emt 0:00:06]} Bc3+ {[%emt 0:00:44]} 30. Kd1 {[%emt 0:02:05]} Bg4+ {[%emt 0:01:52]} 31. Kc2 {[%emt 0:05:12]} Ba1+ {[%emt 0:00:25]} 32. Kd3 {[%emt 0:00:10]} Nf2+ {[%emt 0:01:02]} 33. Ke3 {[%emt 0:00:24]} Nd1+ {[%emt 0:00:42]} 34. Kd2 {[%emt 0:00:13]} Bc3+ {[%emt 0:00:51]} 35. Kd3 {[%emt 0:00:55]} Rd8+ {[%emt 0:01:44]} 36. Ke4 {[%emt 0:04:48]} Rd4+ {[%emt 0:00:38]} 37. Ke5 {[%emt 0:03:00]} Rxb4+ {[%emt 0:00:14]} 38. Kd5 {[%emt 0:00:16]} Rxb1 {[%emt 0:00:18]} 39. Kc6 {[%emt 0:00:00]} Rxc1 {[%emt 0:00:21]} 40. Kb6 {[%emt 0:00:00]} Ra1 {[%emt 0:00:50]} 41. Kxa6 {[%emt 0:00:00]} b4 {[%emt 0:00:28]} 42. Kb5 {[%emt 0:00:00]} Rxa3 {[%emt 0:00:27]} 43. Kc4 {[%emt 0:00:05]} b3 {[%emt 0:00:22]} 44. h3 {[%emt 0:00:09]} Bxh3 {[%emt 0:00:12]} 45. g4 {[%emt 0:00:05]} b2 {[%emt 0:00:20]} 46. f5 {[%emt 0:00:06]} b1=Q {[%emt 0:00:21]} 47. g5 {[%emt 0:00:08]} Qb4+ {[%emt 0:00:34]} 48. Kd5 {[%emt 0:00:48]} Ra5+ {[%emt 0:00:28]} 49. Kc6 {[%emt 0:02:25]} Qc5+ {[%emt 0:00:32]} 50. Kd7 {[%emt 0:01:53]} Bxf5+ {[%emt 0:00:31]} 0-1

[Event "DVM U10 2024"]
[Site "Duesseldorf"]
[Date "2024.12.28"]
[Round "5"]
[White "Balla, Virinchi"]
[Black "Pereira, Jefferson Luis de S."]
[Result "1-0"]
[ECO "C57"]
[WhiteElo "1123"]
[BlackElo "1932"]
[Annotator "RC"]
[PlyCount "63"]
[EventDate "2024.12.23"]
[EventType "team-tourn"]
[EventRounds "7"]
[EventCountry "GER"]
[SourceTitle "playchess.com"]
[Source "ChessBase"]
[SourceQuality "1"]
[TimeControl "3300+5"]

1. e4 {[%emt 0:00:01]} e5 {[%emt 0:00:02]} 2. Nf3 {[%emt 0:00:06]} Nc6 {[%emt 0:00:05]} 3. Bc4 {[%emt 0:00:06]} Nf6 {[%emt 0:00:05]} 4. Ng5 {[%emt 0:00:06]} d5 {[%emt 0:01:06]} 5. exd5 {[%emt 0:00:06]} Nxd5 {[%emt 0:00:03]} 6. d3 {[%emt 0:01:35]} Bc5 {[%emt 0:01:47]} 7. Ne4 {[%emt 0:01:40]} O-O {[%emt 0:01:33]} 8. Nxc5 {[%emt 0:00:13]} Qd6 {[%emt 0:00:20]} 9. Ne4 {[%emt 0:00:49]} Nb6 {[%emt 0:02:54]} 10. Nxd6 {[%emt 0:00:15]} cxd6 {[%emt 0:01:13]} 11. O-O {[%emt 0:00:23]} d5 {[%emt 0:00:58]} 12. Bb5 {[%emt 0:00:31]} Nd4 {[%emt 0:00:36]} 13. Nc3 {[%emt 0:01:58]} Rd8 {[%emt 0:00:31]} 14. Bg5 {[%emt 0:01:03]} Rd6 {[%emt 0:00:55]} 15. Be7 {[%emt 0:02:04]} Rg6 {[%emt 0:01:31]} 16. Re1 {[%emt 0:01:20]} Bh3 {[%emt 0:00:41]} 17. g3 {[%emt 0:00:15]} Bg4 {[%emt 0:00:54]} 18. Qc1 {[%emt 0:01:30]} Re8 {[%emt 0:01:02]} 19. Bxe8 {[%emt 0:00:26]} Nf3+ {[%emt 0:00:16]} 20. Kg2 {[%emt 0:00:29]} Nxe1+ {[%emt 0:01:11]} 21. Qxe1 {[%emt 0:00:14]} Rh6 {[%emt 0:00:13]} 22. Qxe5 {[%emt 0:01:06]} Re6 {[%emt 0:01:29]} 23. Qb8 {[%emt 0:00:29]} Rxe7 {[%emt 0:00:22]} 24. Ba4+ {[%emt 0:00:09]} Bc8 {[%emt 0:00:05]} 25. Qd6 {[%emt 0:01:17]} Re8 {[%emt 0:00:37]} 26. Bxe8 {[%emt 0:00:19]} Nc4 {[%emt 0:00:25]} 27. Qd8 {[%emt 0:00:18]} g6 {[%emt 0:00:18]} 28. dxc4 {[%emt 0:01:37]} Be6 {[%emt 0:00:39]} 29. cxd5 {[%emt 0:00:12]} Bf5 {[%emt 0:00:18]} 30. d6 {[%emt 0:00:18]} Bxc2 {[%emt 0:00:47]} 31. Qf6 {[%emt 0:00:06]} a6 {[%emt 0:00:17]} 32. Qxf7+ {[%emt 0:00:06]} 1-0

[Event "DVM U10 2024"]
[Site "Duesseldorf"]
[Date "2024.12.28"]
[Round "5"]
[White "Artarov, Rina"]
[Black "Golnik, Rasmus"]
[Result "1-0"]
[ECO "D37"]
[WhiteElo "1122"]
[BlackElo "1087"]
[Annotator "NA RC"]
[PlyCount "95"]
[EventDate "2024.12.23"]
[EventType "team-tourn"]
[EventRounds "7"]
[EventCountry "GER"]
[SourceTitle "playchess.com"]
[Source "ChessBase"]
[SourceQuality "1"]
[TimeControl "3300+5"]

1. d4 {[%emt 0:00:03]} d5 {[%emt 0:00:04]} 2. c4 {[%emt 0:00:05]} e6 {[%emt 0:00:06]} 3. Nc3 {[%emt 0:00:05]} Nf6 {[%emt 0:00:06]} 4. Bf4 {[%emt 0:00:07]} Be7 {[%emt 0:00:52]} 5. e3 {[%emt 0:00:12]} O-O {[%emt 0:00:34]} 6. Nf3 {[%emt 0:00:17]} c5 {[%emt 0:00:39]} 7. Qc2 {[%emt 0:00:15]} Nc6 {[%emt 0:00:43]} 8. Bd3 {[%emt 0:00:10]} b6 {[%emt 0:01:53]} 9. O-O {[%emt 0:00:10]} h6 {[%emt 0:01:01]} 10. Rfe1 {[%emt 0:00:18]} Re8 {[%emt 0:00:28]} 11. Nb5 {[%emt 0:00:35]} Rf8 {[%emt 0:02:39]} 12. Qa4 {[%emt 0:02:50]} Na5 {[%emt 0:03:15]} 13. Bc7 {[%emt 0:02:41]} Qd7 {[%emt 0:03:49]} 14. Ne5 {[%emt 0:00:14]} Qe8 {[%emt 0:00:19]} 15. Qc2 {[%emt 0:01:37]} a6 {[%emt 0:02:04]} 16. Nd6 {[%emt 0:00:34]} Bxd6 {[%emt 0:00:20]} 17. Bxd6 {[%emt 0:01:26]} Bb7 {[%emt 0:01:34]} 18. dxc5 {[%emt 0:00:05]} bxc5 {[%emt 0:00:44]} 19. Bxc5 {[%emt 0:00:47]} Rc8 {[%emt 0:02:54]} 20. Bxf8 {[%emt 0:00:11]} Qxf8 {[%emt 0:00:28]} 21. Qa4 {[%emt 0:00:20]} Nxc4 {[%emt 0:01:28]} 22. Nxc4 {[%emt 0:00:13]} dxc4 {[%emt 0:00:28]} 23. Bxc4 {[%emt 0:00:07]} Qc5 {[%emt 0:01:48]} 24. Rac1 {[%emt 0:01:11]} Qg5 {[%emt 0:02:58]} 25. Bf1 {[%emt 0:00:35]} Rd8 {[%emt 0:02:28]} 26. Rc7 {[%emt 0:02:32]} Bd5 {[%emt 0:01:43]} 27. Qxa6 {[%emt 0:00:58]} Re8 {[%emt 0:01:39]} 28. Rc8 {[%emt 0:01:12]} Rxc8 {[%emt 0:00:38]} 29. Qxc8+ {[%emt 0:00:07]} Kh7 {[%emt 0:00:09]} 30. Bd3+ {[%emt 0:02:14]} Ne4 {[%emt 0:01:49]} 31. f3 {[%emt 0:00:00]} Qh4 {[%emt 0:02:50]} 32. Rd1 {[%emt 0:01:02]} Qf2+ {[%emt 0:01:54]} 33. Kh1 {[%emt 0:00:00]} Qxe3 {[%emt 0:00:36]} 34. fxe4 {[%emt 0:00:00]} Bxe4 {[%emt 0:01:25]} 35. Bxe4+ {[%emt 0:00:00]} Qxe4 {[%emt 0:00:06]} 36. Rc1 {[%emt 0:00:21]} Qf4 {[%emt 0:01:28]} 37. Kg1 {[%emt 0:00:49]} Qe3+ {[%emt 0:00:43]} 38. Kf1 {[%emt 0:00:42]} Qf4+ {[%emt 0:00:58]} 39. Ke2 {[%emt 0:00:36]} Qe4+ {[%emt 0:00:16]} 40. Kd2 {[%emt 0:00:17]} Qd4+ {[%emt 0:00:08]} 41. Ke1 {[%emt 0:01:07]} Qe3+ {[%emt 0:00:51]} 42. Kf1 {[%emt 0:00:12]} Qf4+ {[%emt 0:00:48]} 43. Kg1 {[%emt 0:00:16]} Qe3+ {[%emt 0:00:48]} 44. Kh1 {[%emt 0:00:07]} Qf4 {[%emt 0:01:03]} 45. Qc2+ {[%emt 0:00:37]} f5 {[%emt 0:00:41]} 46. Rd1 {[%emt 0:01:18]} Kg6 {[%emt 0:00:37]} 47. Qd2 {[%emt 0:00:57]} Kh7 {[%emt 0:00:12]} 48. Qxf4 {[%emt 0:00:14]} 1-0

[Event "DVM U10 2024"]
[Site "Duesseldorf"]
[Date "2024.12.28"]
[Round "5"]
[White "Goyush, Shams"]
[Black "Shandi, Hasan"]
[Result "1-0"]
[ECO "C55"]
[WhiteElo "1122"]
[BlackElo "1153"]
[Annotator "NA RC"]
[PlyCount "81"]
[EventDate "2024.12.23"]
[EventType "team-tourn"]
[EventRounds "7"]
[EventCountry "GER"]
[SourceTitle "playchess.com"]
[Source "ChessBase"]
[SourceQuality "1"]
[TimeControl "3300+5"]

1. e4 {[%emt 0:00:01]} e5 {[%emt 0:00:05]} 2. Nf3 {[%emt 0:00:04]} Nc6 {[%emt 0:00:07]} 3. Bc4 {[%emt 0:00:06]} Be7 {[%emt 0:00:07]} 4. d3 {[%emt 0:00:12]} Nf6 {[%emt 0:00:08]} 5. Nc3 {[%emt 0:00:38]} d6 {[%emt 0:00:10]} 6. h3 {[%emt 0:00:07]} Na5 {[%emt 0:00:37]} 7. Bb3 {[%emt 0:00:21]} Nxb3 {[%emt 0:00:21]} 8. axb3 {[%emt 0:00:14]} O-O {[%emt 0:00:32]} 9. O-O {[%emt 0:00:06]} Be6 {[%emt 0:00:26]} 10. Be3 {[%emt 0:00:51]} h6 {[%emt 0:00:19]} 11. Rxa7 {[%emt 0:00:27]} Rxa7 {[%emt 0:00:20]} 12. Bxa7 {[%emt 0:00:13]} b6 {[%emt 0:00:13]} 13. Qa1 {[%emt 0:02:17]} Qd7 {[%emt 0:00:05]} 14. Qa4 {[%emt 0:02:15]} Qxa4 {[%emt 0:00:15]} 15. Nxa4 {[%emt 0:00:31]} Ra8 {[%emt 0:00:08]} 16. Bxb6 {[%emt 0:00:33]} cxb6 {[%emt 0:00:13]} 17. Nxb6 {[%emt 0:00:15]} Ra6 {[%emt 0:01:14]} 18. Na4 {[%emt 0:02:43]} Nh5 {[%emt 0:00:32]} 19. Re1 {[%emt 0:07:41]} Nf4 {[%emt 0:00:13]} 20. d4 {[%emt 0:00:38]} Bf6 {[%emt 0:00:23]} 21. d5 {[%emt 0:00:54]} Bd7 {[%emt 0:00:14]} 22. Ra1 {[%emt 0:01:44]} Bb5 {[%emt 0:01:32]} 23. c4 {[%emt 0:01:08]} Bxa4 {[%emt 0:00:07]} 24. Rxa4 {[%emt 0:00:19]} Rb6 {[%emt 0:00:13]} 25. b4 {[%emt 0:00:47]} Nd3 {[%emt 0:00:14]} 26. b5 {[%emt 0:02:03]} Nxb2 {[%emt 0:00:13]} 27. Rb4 {[%emt 0:01:23]} Nd3 {[%emt 0:01:04]} 28. Rb3 {[%emt 0:00:37]} Nc5 {[%emt 0:00:10]} 29. Rb4 {[%emt 0:00:15]} Nxe4 {[%emt 0:00:20]} 30. Kf1 {[%emt 0:00:44]} Nc5 {[%emt 0:00:32]} 31. Nd2 {[%emt 0:01:59]} e4 {[%emt 0:00:13]} 32. Ke2 {[%emt 0:04:26]} Bc3 {[%emt 0:00:06]} 33. Rb1 {[%emt 0:02:18]} Bxd2 {[%emt 0:00:09]} 34. Kxd2 {[%emt 0:00:13]} f5 {[%emt 0:00:18]} 35. f3 {[%emt 0:00:59]} Kf7 {[%emt 0:00:10]} 36. Rf1 {[%emt 0:01:28]} Kf6 {[%emt 0:00:12]} 37. fxe4 {[%emt 0:00:25]} Nxe4+ {[%emt 0:00:24]} 38. Ke3 {[%emt 0:01:29]} Ke5 {[%emt 0:01:39]} 39. g4 {[%emt 0:00:36]} fxg4 {[%emt 0:02:10]} 40. hxg4 {[%emt 0:00:14]} Rb7 {[%emt 0:00:29]} 41. Rf5# {[%emt 0:00:21]} 1-0

[Event "DVM U10 2024"]
[Site "Duesseldorf"]
[Date "2024.12.28"]
[Round "5"]
[White "Sander, Bela"]
[Black "Seitov, Adela"]
[Result "1/2-1/2"]
[ECO "C45"]
[WhiteElo "1117"]
[BlackElo "911"]
[Annotator "NA RC"]
[PlyCount "69"]
[EventDate "2024.12.23"]
[EventType "team-tourn"]
[EventRounds "7"]
[EventCountry "GER"]
[SourceTitle "playchess.com"]
[Source "ChessBase"]
[SourceQuality "1"]
[TimeControl "3300+5"]

1. e4 {[%emt 0:00:02]} e5 {[%emt 0:00:06]} 2. Nf3 {[%emt 0:00:07]} Nc6 {[%emt 0:00:06]} 3. d4 {[%emt 0:00:17]} exd4 {[%emt 0:00:10]} 4. Nxd4 {[%emt 0:00:07]} Nxd4 {[%emt 0:00:21]} 5. Qxd4 {[%emt 0:00:09]} Nf6 {[%emt 0:00:51]} 6. Bg5 {[%emt 0:00:15]} Be7 {[%emt 0:00:16]} 7. Nc3 {[%emt 0:01:06]} b6 {[%emt 0:00:11]} 8. Qd1 {[%emt 0:01:02]} d6 {[%emt 0:01:12]} 9. Bb5+ {[%emt 0:01:01]} Bd7 {[%emt 0:00:28]} 10. Bc4 {[%emt 0:00:45]} Bg4 {[%emt 0:00:44]} 11. f3 {[%emt 0:00:41]} Be6 {[%emt 0:00:19]} 12. Bxe6 {[%emt 0:00:41]} fxe6 {[%emt 0:00:07]} 13. Qd2 {[%emt 0:01:21]} Qd7 {[%emt 0:02:01]} 14. O-O-O {[%emt 0:00:54]} h6 {[%emt 0:00:27]} 15. Bh4 {[%emt 0:00:19]} e5 {[%emt 0:03:09]} 16. Bg3 {[%emt 0:00:58]} b5 {[%emt 0:00:21]} 17. Nd5 {[%emt 0:02:26]} c6 {[%emt 0:00:26]} 18. Nxf6+ {[%emt 0:00:30]} Bxf6 {[%emt 0:00:22]} 19. Qxd6 {[%emt 0:00:26]} Bg5+ {[%emt 0:00:44]} 20. Kb1 {[%emt 0:00:37]} Qxd6 {[%emt 0:00:29]} 21. Rxd6 {[%emt 0:00:09]} O-O {[%emt 0:00:54]} 22. Rxc6 {[%emt 0:00:40]} Rfd8 {[%emt 0:00:19]} 23. Bxe5 {[%emt 0:00:52]} Rd7 {[%emt 0:00:09]} 24. a3 {[%emt 0:00:35]} Re7 {[%emt 0:00:28]} 25. f4 {[%emt 0:01:24]} Bf6 {[%emt 0:00:23]} 26. Bxf6 {[%emt 0:00:22]} gxf6 {[%emt 0:00:13]} 27. Rxf6 {[%emt 0:00:14]} Rxe4 {[%emt 0:00:08]} 28. Rxh6 {[%emt 0:00:27]} Rxf4 {[%emt 0:00:14]} 29. h4 {[%emt 0:00:20]} Rc8 {[%emt 0:00:05]} 30. h5 {[%emt 0:01:19]} Rf2 {[%emt 0:00:09]} 31. Rg6+ {[%emt 0:00:17]} Kf7 {[%emt 0:00:10]} 32. c3 {[%emt 0:00:35]} Rd8 {[%emt 0:00:10]} 33. Ka2 {[%emt 0:01:25]} Rdd2 {[%emt 0:00:16]} 34. Rb1 {[%emt 0:00:52]} Rf5 {[%emt 0:01:11]} 35. Ra6 {[%emt 0:00:23]} 1/2-1/2